bitfinex/quotes_BTCUSD_20240729
["timestamp","ask_amount","ask_price","bid_price","bid_amount"]
[1722266076843,0.04390356,68143.0,68142.0,1.81526739]
[1722266077506,0.06692683,68143.0,68142.0,1.81526739]
[1722266078828,0.02050826,68143.0,68142.0,2.10877139]
[1722266079054,0.00184,68147.0,68146.0,1.572691]
[1722266079300,0.05217776,68170.0,68164.0,0.296705]
[1722266079301,0.00827,68170.0,68164.0,0.296705]
[1722266079542,0.00827,68170.0,68169.0,0.296694]
[1722266079739,0.0787,68178.0,68169.0,0.296694]
[1722266079740,0.04390776,68187.0,68180.0,0.883352]
[1722266079865,0.01735789,68186.0,68180.0,1.47509239]
[1722266080066,0.0638,68189.0,68180.0,1.57509239]
[1722266080270,0.01746068,68188.0,68180.0,0.91541039]
[1722266080518,0.02573068,68181.0,68180.0,0.91541039]
[1722266080719,0.02573068,68181.0,68180.0,0.68311039]
[1722266080920,0.02573068,68181.0,68180.0,0.97645139]
[1722266081138,0.02573068,68181.0,68180.0,1.25875139]
[1722266081335,0.00827,68181.0,68180.0,2.16503339]
[1722266081917,0.00827,68181.0,68180.0,1.63289239]
[1722266082098,0.00827,68181.0,68180.0,0.68311039]
[1722266082296,0.07427,68181.0,68180.0,0.40140317]
[1722266082502,0.07427,68181.0,68180.0,0.98808517]
[1722266082673,0.07427,68181.0,68180.0,0.40140317]
[1722266082877,0.00827,68181.0,68180.0,0.69474417]
[1722266083207,0.00827,68181.0,68180.0,1.80652617]
[1722266083429,0.03128017,68181.0,68180.0,2.09986717]
[1722266083633,0.00827,68181.0,68180.0,2.39320817]
[1722266084469,0.06947,68201.0,68193.0,1.366597]
[1722266084666,0.06947,68201.0,68193.0,1.76167225]
[1722266085877,0.06947,68201.0,68193.0,2.13235725]
[1722266085878,0.00827,68201.0,68193.0,2.13235725]
[1722266086080,0.00827,68201.0,68200.0,1.278392]
[1722266086321,0.00827,68201.0,68200.0,1.87314225]
[1722266086441,0.00827,68201.0,68200.0,2.20633779]
[1722266086811,0.00827,68213.0,68200.0,2.20633779]
[1722266086812,0.00827,68213.0,68212.0,0.591804]
[1722266087022,0.00827,68213.0,68212.0,2.00294879]
[1722266087225,0.00827,68213.0,68212.0,2.4898052]
[1722266087425,0.00827,68213.0,68212.0,2.5128052]
[1722266087705,0.00827,68213.0,68212.0,2.5422252]
[1722266087706,0.03126976,68213.0,68212.0,2.5422252]
[1722266088143,0.00717,68218.0,68217.0,1.764501]
[1722266088338,0.00827,68238.0,68219.0,0.621179]
[1722266088538,0.00827,68238.0,68219.0,1.84671936]
[1722266088699,0.00827,68238.0,68219.0,1.86971936]
[1722266089059,0.00827,68238.0,68219.0,2.16100025]
[1722266089739,0.00827,68238.0,68219.0,1.83150127]
[1722266089901,0.00827,68238.0,68219.0,1.86766797]
[1722266090730,0.0625,68233.0,68219.0,1.86766797]
[1722266091308,0.0625,68233.0,68219.0,1.79577325]
[1722266091783,0.0625,68233.0,68219.0,1.86961425]
[1722266092117,0.0625,68233.0,68219.0,1.79577325]
[1722266092436,0.0625,68233.0,68219.0,1.76635325]
[1722266092683,0.0625,68233.0,68219.0,1.80314072]
[1722266092857,0.0625,68233.0,68219.0,1.50796772]
[1722266093042,0.0625,68233.0,68219.0,1.47118025]
[1722266093828,0.0625,68233.0,68219.0,1.44220439]
[1722266094048,0.00827,68238.0,68219.0,1.44220439]
[1722266094049,0.00827,68238.0,68219.0,1.4537338]
[1722266094221,0.00827,68238.0,68219.0,1.49430443]
[1722266094430,0.00827,68238.0,68219.0,1.78747743]
[1722266094606,0.00827,68238.0,68219.0,2.15595043]
[1722266094810,0.00827,68238.0,68219.0,1.8222068]
[1722266095015,0.00827,68238.0,68219.0,1.56431207]
[1722266095178,0.00827,68238.0,68219.0,1.57159541]
[1722266095379,0.00827,68238.0,68219.0,1.8222068]
[1722266095802,0.00827,68238.0,68219.0,1.86476841]
[1722266096007,0.00827,68238.0,68219.0,1.57159541]
[1722266096205,0.076,68232.0,68219.0,1.39629541]
[1722266096537,0.0616,68227.0,68219.0,0.63694941]
[1722266096739,0.0616,68227.0,68219.0,0.3012148]
[1722266096956,0.0616,68227.0,68219.0,0.8875608]
[1722266097520,0.0616,68227.0,68219.0,1.1807338]
[1722266097757,0.0616,68227.0,68219.0,0.8875608]
[1722266098315,0.0616,68227.0,68219.0,0.9875608]
[1722266098953,0.02383731,68220.0,68219.0,0.9875608]
[1722266099164,0.00084,68220.0,68219.0,0.9875608]
[1722266099830,0.00184,68220.0,68219.0,0.9985608]
[1722266100126,0.02483736,68220.0,68219.0,0.9985608]
[1722266100679,0.02483736,68220.0,68219.0,0.02252941]
[1722266100879,0.46110636,68220.0,68219.0,0.011]
[1722266101083,0.46110636,68220.0,68199.0,0.146629]
[1722266101084,0.146596,68215.0,68199.0,0.146629]
[1722266101287,0.294009,68220.0,68196.0,0.02897586]
[1722266101288,0.0648,68213.0,68196.0,0.02897586]
[1722266101487,0.0648,68213.0,68197.0,0.15461321]
[1722266101768,0.293195,68214.0,68196.0,0.02897586]
[1722266101769,0.0648,68207.0,68196.0,0.02897586]
[1722266101974,0.0648,68207.0,68193.0,0.293283]
[1722266101975,0.1431,68207.0,68206.0,0.146614]
[1722266102167,0.1431,68207.0,68198.0,0.14309939]
[1722266102374,0.1431,68207.0,68204.0,0.293237]
[1722266102571,0.02300523,68205.0,68203.0,0.14662]
[1722266102809,0.02300523,68205.0,68201.0,0.146624]
[1722266102979,0.02300523,68205.0,68196.0,0.146635]
[1722266103213,0.02300523,68205.0,68184.0,0.2901]
[1722266103452,0.02300523,68205.0,68177.0,0.0803]
[1722266103453,0.0622,68196.0,68188.0,0.058762]
[1722266103672,0.0622,68194.0,68188.0,0.058762]
[1722266104050,0.0622,68194.0,68166.0,0.468]
[1722266104051,0.1392,68189.0,68166.0,0.468]
[1722266104261,0.0622,68186.0,68167.0,0.5723607]
[1722266104469,0.077,68187.0,68167.0,0.14309939]
[1722266104683,0.14309939,68189.0,68167.0,0.14309939]
[1722266104684,0.077,68184.0,68167.0,0.14309939]
[1722266104891,0.0622,68183.0,68169.0,0.146693]
[1722266105094,0.0622,68183.0,68167.0,0.14309939]
[1722266105292,0.0622,68183.0,68175.0,0.14668]
[1722266105522,0.0622,68183.0,68167.0,0.14309939]
[1722266105724,0.0826,68176.0,68160.0,0.146712]
[1722266105951,0.0636,68175.0,68165.0,0.146702]
[1722266106162,0.0636,68175.0,68166.0,0.14603306]
[1722266106312,0.0636,68175.0,68174.0,0.146683]
[1722266106513,0.0636,68175.0,68174.0,0.440049]
[1722266106916,0.0636,68175.0,68174.0,0.733415]
[1722266107489,0.0636,68175.0,68174.0,0.440049]
[1722266107687,0.0636,68175.0,68174.0,0.146683]
[1722266107884,0.0636,68175.0,68174.0,0.440049]
[1722266107885,0.08661511,68175.0,68174.0,0.440049]
[1722266108315,0.0636,68175.0,68174.0,0.540049]
[1722266109135,0.0586,68175.0,68174.0,0.540049]
[1722266109809,0.0586,68175.0,68174.0,0.246683]
[1722266110234,0.0586,68175.0,68174.0,0.1]
[1722266110457,0.0586,68175.0,68173.0,0.1]
[1722266110849,0.0586,68175.0,68166.0,0.43649839]
[1722266110850,0.0586,68175.0,68167.0,0.1]
[1722266111087,0.0586,68175.0,68170.0,0.146691]
[1722266111324,0.0586,68175.0,68169.0,0.011]
[1722266111584,0.440076,68170.0,68169.0,0.011]
[1722266111812,0.440076,68170.0,68141.0,0.468]
[1722266111813,0.05,68162.0,68147.0,0.01175071]
[1722266112047,0.05,68167.0,68149.0,0.42926131]
[1722266112048,0.0601,68156.0,68149.0,0.42926131]
[1722266112274,0.0601,68156.0,68134.0,0.108808]
[1722266112508,0.0601,68156.0,68143.0,0.2935]
[1722266112971,0.0601,68156.0,68138.0,0.29352]
[1722266113204,0.0601,68156.0,68139.0,0.14309939]
[1722266113732,0.0601,68156.0,68141.0,0.07094714]
[1722266113967,0.0601,68156.0,68143.0,0.293498]
[1722266114210,0.0601,68156.0,68145.0,0.293491]
[1722266114409,0.0601,68156.0,68138.0,0.293518]
[1722266114410,0.065,68151.0,68134.0,0.01145924]
[1722266114609,0.20809939,68151.0,68134.0,0.01145924]
[1722266114841,0.20809939,68151.0,68129.0,0.058812]
[1722266114842,0.146739,68148.0,68129.0,0.058812]
[1722266115013,0.1464,68150.0,68134.0,0.146767]
[1722266115014,0.0608,68149.0,68134.0,0.146767]
[1722266115222,0.0608,68149.0,68130.0,0.14309939]
[1722266115418,0.0608,68149.0,68135.0,0.14309939]
[1722266115648,0.0608,68149.0,68146.0,0.146742]
[1722266115779,0.0608,68149.0,68148.0,0.146739]
[1722266115995,0.0608,68149.0,68148.0,0.58331639]
[1722266116205,0.0608,68149.0,68148.0,0.97679439]
[1722266116403,0.001,68151.0,68150.0,0.440205]
[1722266116603,0.001,68151.0,68150.0,1.27024439]
[1722266116827,0.0608,68159.0,68155.0,0.146723]
[1722266116988,0.0608,68159.0,68154.0,0.293451]
[1722266117187,0.0608,68159.0,68158.0,0.440152]
[1722266117405,0.1432,68183.0,68158.0,0.24309939]
[1722266117630,0.1432,68183.0,68182.0,0.146666]
[1722266117833,0.1432,68183.0,68171.0,0.1]
[1722266118131,0.1432,68183.0,68172.0,0.14309939]
[1722266118355,0.1432,68183.0,68173.0,0.1015542]
[1722266118540,0.1432,68183.0,68171.0,0.1]
[1722266118862,0.1432,68183.0,68179.0,0.14667]
[1722266118979,0.1432,68183.0,68179.0,0.293344]
[1722266119183,0.1432,68183.0,68172.0,0.14309939]
[1722266119184,0.1432,68183.0,68181.0,0.146667]
[1722266119391,0.1432,68183.0,68182.0,0.146666]
[1722266119593,0.1432,68183.0,68181.0,0.146667]
[1722266119797,0.16621305,68183.0,68179.0,0.293343]
[1722266119996,0.07154355,68182.0,68171.0,0.1]
[1722266120306,0.16621305,68183.0,68179.0,0.146672]
[1722266120535,0.16621305,68183.0,68174.0,0.293364]
[1722266120806,0.07154355,68181.0,68175.0,0.1]
[1722266121001,0.07154355,68181.0,68161.0,0.1]
[1722266121002,0.0618,68178.0,68161.0,0.1]
[1722266121212,0.0618,68178.0,68162.0,0.14603315]
[1722266121435,0.0618,68178.0,68163.0,0.1]
[1722266121605,0.0618,68178.0,68164.0,0.14309939]
[1722266121829,0.0618,68178.0,68165.0,0.1]
[1722266121830,0.0793,68173.0,68165.0,0.1]
[1722266122134,0.0618,68172.0,68165.0,0.1]
[1722266122690,0.07154355,68167.0,68147.0,0.01140371]
[1722266122891,0.0618,68172.0,68148.0,0.8658387]
[1722266122892,0.001,68149.0,68148.0,0.8658387]
[1722266123119,0.001,68149.0,68148.0,1.17027239]
[1722266123522,0.001,68149.0,68148.0,0.87679439]
[1722266123743,0.001,68149.0,68148.0,0.58331639]
[1722266124116,0.001,68149.0,68148.0,0.97679439]
[1722266124321,0.02402015,68149.0,68148.0,0.97679439]
[1722266124745,0.001,68149.0,68148.0,0.97679439]
[1722266124950,0.001,68149.0,68138.0,0.393518]
[1722266124951,0.0616,68149.0,68133.0,0.1]
[1722266125104,0.0616,68149.0,68135.0,0.293533]
[1722266125312,0.0616,68149.0,68136.0,0.14309939]
[1722266125313,0.0606,68149.0,68136.0,0.14309939]
[1722266125556,0.0606,68149.0,68137.0,0.146761]
[1722266125733,0.0606,68149.0,68125.0,0.08779186]
[1722266125734,0.07154355,68147.0,68125.0,0.08779186]
[1722266125986,0.0606,68149.0,68126.0,0.14309939]
[1722266126183,0.0606,68149.0,68134.0,0.146769]
[1722266126447,0.0606,68149.0,68133.0,0.293543]
[1722266126448,0.0606,68149.0,68133.0,0.293542]
[1722266126618,0.0606,68149.0,68126.0,0.14309939]
[1722266126862,0.0606,68149.0,68135.0,0.146766]
[1722266127053,0.0606,68149.0,68126.0,0.14309939]
[1722266127054,0.0606,68149.0,68136.0,0.146764]
[1722266127175,0.0606,68149.0,68127.0,0.07154355]
[1722266127372,0.0606,68149.0,68135.0,0.146767]
[1722266127573,0.0606,68149.0,68134.0,0.293537]
[1722266127574,0.0606,68149.0,68136.0,0.146764]
[1722266128035,0.0606,68149.0,68137.0,0.1]
[1722266128381,0.207337,68149.0,68136.0,0.1]
[1722266128602,0.207337,68149.0,68133.0,0.1]
[1722266128603,0.21859939,68148.0,68133.0,0.1]
[1722266128800,0.21859939,68148.0,68121.0,0.293592]
[1722266128801,0.0603,68145.0,68126.0,0.1]
[1722266129015,0.0603,68145.0,68129.0,0.293556]
[1722266129212,0.0603,68145.0,68133.0,0.14677]
[1722266129417,0.08332513,68145.0,68134.0,0.246767]
[1722266129627,0.0603,68145.0,68134.0,0.246769]
[1722266130050,0.0603,68145.0,68134.0,0.1]
[1722266130660,0.0603,68145.0,68135.0,0.002935]
[1722266130966,0.0603,68145.0,68139.0,0.146758]
[1722266131168,0.0603,68145.0,68140.0,0.146755]
[1722266131499,0.0603,68145.0,68135.0,0.1]
[1722266132267,0.02302492,68143.0,68135.0,0.1]
[1722266132461,0.02302492,68143.0,68132.0,0.146773]
[1722266132661,0.02302492,68143.0,68133.0,0.1]
[1722266132871,0.207046,68145.0,68133.0,0.1]
[1722266133073,0.207046,68145.0,68117.0,0.293612]
[1722266133074,0.0614,68140.0,68117.0,0.293612]
[1722266133295,0.0614,68138.0,68118.0,0.293604]
[1722266133518,0.07771096,68137.0,68120.0,0.14309939]
[1722266133721,0.0614,68138.0,68125.0,0.146788]
[1722266133928,0.0614,68138.0,68126.0,0.146785]
[1722266134126,0.0614,68138.0,68122.0,0.29359]
[1722266134331,0.0614,68138.0,68119.0,0.02083073]
[1722266134529,0.07848803,68137.0,68123.0,0.146792]
[1722266134733,0.0614,68138.0,68124.0,0.1]
[1722266135247,0.0614,68138.0,68135.0,0.006]
[1722266135817,0.0614,68138.0,68128.0,0.246782]
[1722266135818,0.0614,68138.0,68128.0,0.1]
[1722266136309,0.02302865,68136.0,68128.0,0.1]
[1722266136707,0.02302865,68136.0,68127.0,0.246784]
[1722266136992,0.02302865,68136.0,68127.0,0.1]
[1722266137105,0.02302865,68136.0,68127.0,0.246783]
[1722266137313,0.02302865,68136.0,68127.0,0.1]
[1722266137506,0.02302865,68136.0,68128.0,0.293564]
[1722266137707,0.02302865,68136.0,68127.0,0.1]
[1722266137708,0.02302865,68136.0,68129.0,0.1]
[1722266137908,0.02302865,68136.0,68129.0,0.24678]
[1722266138108,0.02302865,68136.0,68129.0,0.1]
[1722266138511,0.02302865,68136.0,68100.0,0.000924]
[1722266138512,0.0619,68129.0,68100.0,0.000924]
[1722266138715,0.0619,68129.0,68112.0,0.0118563]
[1722266138716,0.874397,68120.0,68112.0,0.0118563]
[1722266138962,0.874397,68120.0,68100.0,0.000924]
[1722266138963,0.1404,68113.0,68100.0,0.000924]
[1722266139133,0.07803609,68112.0,68100.0,0.000924]
[1722266139346,0.1404,68113.0,68100.0,0.000924]
[1722266139694,0.1404,68113.0,68103.0,0.146835]
[1722266139973,0.1404,68113.0,68110.0,0.01143731]
[1722266141248,0.1404,68113.0,68098.0,0.302776]
[1722266141453,0.1404,68113.0,68111.0,0.002924]
[1722266142939,0.16343695,68113.0,68111.0,0.002924]
[1722266143804,0.1404,68113.0,68111.0,0.002924]
[1722266145942,0.1354,68113.0,68111.0,0.002924]
[1722266146150,0.1364,68113.0,68111.0,0.002924]
[1722266148669,0.28991639,68112.0,68111.0,0.002924]
[1722266148872,0.58355039,68112.0,68111.0,0.002924]
[1722266149075,0.87718439,68112.0,68111.0,0.002924]
[1722266149281,0.72722397,68112.0,68111.0,0.002924]
[1722266149611,0.14367358,68112.0,68111.0,0.002924]
[1722266149813,0.14367358,68112.0,68111.0,0.000924]
[1722266149814,0.0646,68112.0,68111.0,0.000924]
[1722266151003,0.001,68113.0,68111.0,0.002924]
[1722266151600,0.001,68113.0,68111.0,0.000924]
[1722266152497,0.02403699,68113.0,68111.0,0.000924]
[1722266153055,0.07892136,68112.0,68111.0,0.000924]
[1722266153441,0.02403699,68113.0,68111.0,0.000924]
[1722266153442,0.001,68113.0,68111.0,0.000924]
[1722266153644,0.07891902,68112.0,68111.0,0.000924]
[1722266153850,0.001,68113.0,68111.0,0.000924]
[1722266154055,0.0790683,68112.0,68111.0,0.000924]
[1722266154458,0.2258783,68115.0,68111.0,0.000924]
[1722266154740,0.001,68113.0,68111.0,0.000924]
[1722266154897,0.0790683,68112.0,68111.0,0.000924]
[1722266155097,0.2258853,68112.0,68111.0,0.000924]
[1722266155480,0.5195193,68112.0,68111.0,0.000924]
[1722266155681,0.11617103,68112.0,68111.0,0.000924]
[1722266156294,0.28602621,68112.0,68111.0,0.000924]
[1722266156733,0.28631948,68112.0,68111.0,0.000924]
[1722266157094,0.87358748,68112.0,68111.0,0.000924]
[1722266157295,1.45252087,68112.0,68111.0,0.000924]
[1722266157650,1.50252087,68112.0,68111.0,0.000924]
[1722266157812,1.42948269,68112.0,68111.0,0.000924]
[1722266157988,1.47948269,68112.0,68111.0,0.000924]
[1722266158195,1.57948269,68112.0,68111.0,0.000924]
[1722266158492,1.69136564,68112.0,68111.0,0.000924]
[1722266158748,1.71536204,68112.0,68111.0,0.000924]
[1722266158951,2.00899604,68112.0,68111.0,0.000924]
[1722266159154,2.03599604,68112.0,68111.0,0.000924]
[1722266159366,1.320624,68105.0,68104.0,0.009086]
[1722266159575,1.71506704,68105.0,68104.0,0.009086]
[1722266159747,2.00873104,68105.0,68104.0,0.009086]
[1722266159977,2.03245224,68105.0,68104.0,0.009086]
[1722266160345,2.03245224,68105.0,68100.0,0.000924]
[1722266160346,1.317883,68101.0,68100.0,0.000924]
[1722266160569,1.71304724,68101.0,68100.0,0.000924]
[1722266160773,2.00672824,68101.0,68100.0,0.000924]
[1722266160999,1.626305,68099.0,68076.0,0.014036]
[1722266161219,0.50107,68078.0,68076.0,0.014036]
[1722266161425,1.05492709,68078.0,68076.0,0.014036]
[1722266161570,0.1773777,68078.0,68076.0,0.014036]
[1722266161806,1.05492709,68078.0,68076.0,0.014036]
[1722266162034,0.32047709,68078.0,68076.0,0.014036]
[1722266162265,0.14027497,68078.0,68076.0,0.014036]
[1722266162861,0.07987497,68078.0,68076.0,0.014036]
[1722266163157,0.05,68091.0,68076.0,0.014036]
[1722266163158,0.0615,68084.0,68076.0,0.014036]
[1722266163351,0.1,68104.0,68076.0,0.014036]
[1722266163352,0.07653723,68083.0,68078.0,0.07154355]
[1722266163554,0.07653723,68083.0,68079.0,0.00293745]
[1722266163738,0.07653723,68083.0,68082.0,0.440644]
[1722266163914,0.07653723,68083.0,68082.0,0.72294339]
[1722266164116,0.07653723,68083.0,68082.0,1.58546939]
[1722266164470,0.07653723,68083.0,68082.0,1.97923239]
[1722266164673,0.02396582,68083.0,68082.0,1.97923239]
[1722266164884,0.02496582,68083.0,68082.0,1.97923239]
[1722266165088,0.02496582,68083.0,68082.0,1.58346939]
[1722266165302,0.02496582,68083.0,68082.0,0.62918039]
[1722266165303,0.02396582,68083.0,68082.0,0.62918039]
[1722266165506,0.02396582,68083.0,68082.0,0.38229939]
[1722266165720,0.02396582,68083.0,68082.0,1.13970639]
[1722266165917,0.02396582,68083.0,68082.0,0.973607]
[1722266166124,0.02396582,68083.0,68082.0,0.679844]
[1722266166301,0.02396582,68083.0,68082.0,0.1758]
[1722266166528,0.02396582,68083.0,68077.0,0.2]
[1722266166733,0.02396582,68083.0,68077.0,0.346891]
[1722266166949,0.02396582,68083.0,68077.0,0.2]
[1722266167098,0.02396582,68083.0,68077.0,0.346891]
[1722266167294,0.02396582,68083.0,68077.0,0.2]
[1722266167503,0.02396582,68083.0,68079.0,0.146887]
[1722266167708,0.02396582,68083.0,68077.0,0.2]
[1722266167709,0.02396582,68083.0,68082.0,0.146881]
[1722266167908,0.02396582,68083.0,68082.0,0.540644]
[1722266168336,0.02396582,68083.0,68082.0,0.97750639]
[1722266168488,0.02396582,68083.0,68082.0,1.29426939]
[1722266169150,0.02396582,68083.0,68082.0,1.00050639]
[1722266169449,0.02396582,68083.0,68082.0,0.123]
[1722266169664,0.02396582,68083.0,68082.0,0.146881]
[1722266169808,0.02396582,68083.0,68082.0,0.1]
[1722266170008,0.02396582,68083.0,68078.0,0.36532055]
[1722266170009,0.04700974,68083.0,68077.0,0.2]
[1722266170208,0.04700974,68083.0,68080.0,0.146885]
[1722266170408,0.04700974,68083.0,68082.0,0.146881]
[1722266170716,0.04700974,68083.0,68082.0,0.440644]
[1722266171125,0.02396582,68083.0,68082.0,0.440644]
[1722266171324,0.02396582,68083.0,68082.0,0.734407]
[1722266171538,0.02396582,68083.0,68082.0,0.979607]
[1722266171743,0.02396582,68083.0,68082.0,1.43946939]
[1722266172153,0.02496582,68083.0,68082.0,1.49646939]
[1722266172367,0.02496582,68083.0,68082.0,1.44646939]
[1722266172578,0.02496582,68083.0,68082.0,1.59646939]
[1722266172936,0.001,68083.0,68082.0,1.5077121]
[1722266173135,0.1441,68107.0,68090.0,0.293728]
[1722266173340,0.06587603,68106.0,68100.0,0.146841]
[1722266173673,0.06587603,68106.0,68091.0,0.24603605]
[1722266173674,0.06587603,68106.0,68095.0,0.293706]
[1722266173884,0.06587603,68106.0,68091.0,0.24309939]
[1722266174083,0.21838455,68101.0,68091.0,0.1]
[1722266174283,0.21838455,68101.0,68082.0,0.16344271]
[1722266174284,0.14309939,68105.0,68087.0,0.293741]
[1722266174491,0.02304144,68103.0,68088.0,0.1]
[1722266174649,0.09069395,68102.0,68088.0,0.1]
[1722266174846,0.09069395,68102.0,68083.0,0.1]
[1722266174847,0.0765,68094.0,68083.0,0.1]
[1722266175081,0.23341619,68093.0,68083.0,0.1]
[1722266175283,0.23341619,68093.0,68082.0,0.007]
[1722266175284,0.0618,68091.0,68082.0,0.007]
[1722266175488,0.11332282,68090.0,68082.0,0.007]
[1722266175708,0.11332282,68089.0,68082.0,0.007924]
[1722266175910,0.0618,68091.0,68082.0,0.007924]
[1722266175911,0.11332282,68088.0,68082.0,0.007924]
[1722266176137,0.11332282,68087.0,68082.0,0.007924]
[1722266176340,0.0618,68091.0,68082.0,0.007924]
[1722266176341,0.0903228,68086.0,68082.0,0.007924]
[1722266176490,0.0618,68091.0,68082.0,0.007924]
[1722266176688,0.10767714,68090.0,68082.0,0.000924]
[1722266176912,0.08467661,68089.0,68082.0,0.000924]
[1722266177154,0.08467661,68088.0,68082.0,0.000924]
[1722266177303,0.08467661,68087.0,68082.0,0.000924]
[1722266177506,0.08467661,68086.0,68082.0,0.000924]
[1722266177717,0.0618,68091.0,68082.0,0.000924]
[1722266177952,0.146879,68084.0,68082.0,0.000924]
[1722266178181,0.37238774,68083.0,68082.0,0.000924]
[1722266178382,0.53559063,68083.0,68082.0,0.000924]
[1722266178608,0.82934963,68083.0,68082.0,0.005924]
[1722266178878,1.12310863,68083.0,68082.0,0.005924]
[1722266179079,0.82934963,68083.0,68082.0,0.005924]
[1722266179281,0.87934963,68083.0,68082.0,0.005924]
[1722266179480,0.82934963,68083.0,68082.0,0.005924]
[1722266179866,0.38871163,68083.0,68082.0,0.005924]
[1722266180292,0.39249124,68083.0,68082.0,0.005924]
[1722266180521,0.24561224,68083.0,68082.0,0.005924]
[1722266180716,0.24561224,68083.0,68082.0,0.000924]
[1722266180924,0.39249124,68083.0,68082.0,0.000924]
[1722266181088,0.25122604,68083.0,68082.0,0.000924]
[1722266181402,0.11102604,68083.0,68082.0,0.000924]
[1722266181605,0.07066686,68083.0,68082.0,0.441568]
[1722266181794,0.0626,68097.0,68082.0,0.023924]
[1722266182039,0.08032203,68096.0,68083.0,0.1]
[1722266182202,0.08032203,68095.0,68092.0,0.07154355]
[1722266182401,0.08032203,68095.0,68084.0,0.14309939]
[1722266182402,0.0646,68102.0,68084.0,0.14309939]
[1722266182654,0.10462428,68101.0,68089.0,0.146865]
[1722266182823,0.08162721,68100.0,68086.0,0.293744]
[1722266183023,0.08162721,68100.0,68084.0,0.14309939]
[1722266183024,0.08162721,68099.0,68084.0,0.28997539]
[1722266183290,0.146841,68101.0,68085.0,0.146875]
[1722266183291,0.08162721,68098.0,68085.0,0.146875]
[1722266183494,0.08162721,68098.0,68084.0,0.14309939]
[1722266183495,0.001,68087.0,68084.0,0.14309939]
[1722266183903,0.001,68087.0,68085.0,0.146874]
[1722266184064,0.001,68087.0,68084.0,0.14309939]
[1722266184285,0.001,68087.0,68085.0,0.023]
[1722266184414,0.001,68087.0,68085.0,0.316749]
[1722266184617,0.04388221,68099.0,68085.0,0.023]
[1722266184835,0.10119024,68098.0,68085.0,0.023]
[1722266185054,0.10119024,68097.0,68087.0,0.14687]
[1722266185316,0.10119024,68096.0,68087.0,0.14687]
[1722266185667,0.10123691,68095.0,68085.0,0.023]
[1722266185823,0.07819239,68094.0,68086.0,0.293744]
[1722266186023,0.01526027,68093.0,68086.0,0.293744]
[1722266186250,0.04388221,68100.0,68086.0,0.293744]
[1722266186453,0.10970553,68106.0,68085.0,0.09454355]
[1722266186454,0.01525968,68099.0,68096.0,0.14685]
[1722266186727,0.04388221,68106.0,68096.0,0.146851]
[1722266186925,0.06582332,68107.0,68094.0,0.146855]
[1722266186926,0.10001338,68104.0,68094.0,0.146855]
[1722266187126,0.293677,68102.0,68085.0,0.0849]
[1722266187263,0.293677,68102.0,68082.0,0.000924]
[1722266187264,0.0631,68095.0,68082.0,0.000924]
[1722266187469,0.14394188,68094.0,68082.0,0.000924]
[1722266187707,0.10002697,68093.0,68082.0,0.000924]
[1722266187934,0.10701491,68095.0,68082.0,0.147805]
[1722266187935,0.10002697,68092.0,68082.0,0.147805]
[1722266188157,0.10701491,68095.0,68083.0,0.1]
[1722266188158,0.0788,68090.0,68083.0,0.1]
[1722266188392,0.0788,68090.0,68082.0,0.000924]
[1722266188393,0.09860688,68089.0,68082.0,0.000924]
[1722266188607,0.440638,68083.0,68082.0,0.000924]
[1722266188833,0.16447924,68083.0,68082.0,0.000924]
[1722266189039,0.12727585,68083.0,68082.0,0.000924]
[1722266189216,0.08334854,68083.0,68082.0,0.000924]
[1722266189422,0.03831059,68083.0,68082.0,0.000924]
[1722266189648,0.02304817,68083.0,68082.0,1.089994]
[1722266189844,0.02304817,68083.0,68082.0,0.796231]
[1722266190044,0.02304817,68083.0,68082.0,0.819231]
[1722266190282,0.02304817,68083.0,68082.0,0.000924]
[1722266190450,0.146859,68093.0,68082.0,0.000924]
[1722266190647,0.09724776,68092.0,68082.0,0.000924]
[1722266190849,0.04392731,68093.0,68082.0,0.000924]
[1722266190850,0.09724776,68091.0,68082.0,0.000924]
[1722266191072,0.04392731,68093.0,68082.0,0.000924]
[1722266191073,0.01526036,68090.0,68082.0,0.000924]
[1722266191269,0.04392731,68093.0,68082.0,0.000924]
[1722266191270,0.01526036,68089.0,68082.0,0.000924]
[1722266191493,0.075,68087.0,68082.0,0.000924]
[1722266191709,0.14837397,68086.0,68082.0,0.000924]
[1722266191909,0.27277628,68085.0,68082.0,0.000924]
[1722266192112,0.12590128,68084.0,68082.0,0.000924]
[1722266192337,0.16980379,68083.0,68082.0,0.000924]
[1722266192505,0.14789249,68083.0,68082.0,0.000924]
[1722266192710,0.08197397,68083.0,68082.0,0.000924]
[1722266193124,0.0230005,68083.0,68082.0,0.294687]
[1722266193318,0.02299911,68085.0,68082.0,0.000924]
[1722266193532,0.04394372,68090.0,68089.0,0.146866]
[1722266193734,0.0639,68097.0,68084.0,0.15064355]
[1722266193735,0.04394372,68094.0,68090.0,0.146863]
[1722266193912,0.04394372,68094.0,68084.0,0.15064355]
[1722266193913,0.03825667,68093.0,68084.0,0.0791]
[1722266194115,0.02304534,68085.0,68084.0,0.619731]
[1722266194328,0.02304534,68085.0,68084.0,1.15112794]
[1722266194536,0.04394372,68096.0,68084.0,0.41674294]
[1722266194749,0.01525896,68095.0,68094.0,0.146855]
[1722266194947,0.04394372,68102.0,68094.0,0.14309939]
[1722266195152,0.01525752,68101.0,68095.0,0.14309939]
[1722266195355,0.04394372,68104.0,68096.0,0.123]
[1722266195555,0.04478372,68105.0,68099.0,0.146843]
[1722266195762,0.01525671,68104.0,68100.0,0.146842]
[1722266195935,0.01525671,68104.0,68097.0,0.14309939]
[1722266196139,0.01525671,68104.0,68098.0,0.269846]
[1722266196343,0.01525671,68104.0,68098.0,0.26609939]
[1722266197214,0.04393215,68101.0,68098.0,0.1]
[1722266197432,0.04393215,68101.0,68087.0,0.14687]
[1722266197433,0.12433215,68100.0,68087.0,0.14687]
[1722266197666,0.06589823,68101.0,68089.0,0.01116355]
[1722266197667,0.04394002,68098.0,68089.0,0.01116355]